lending/lending_fUSD_20250114
["ID","MTS","AMOUNT","RATE_DAILY","PERIOD"]
[348901945,1736867448730,-500.0,9.969e-05,2]
[348901947,1736867448741,-157.983191,9.969e-05,2]
[348901949,1736867448750,-157.983191,9.969e-05,2]
[348901950,1736867448759,-500.0,9.969e-05,2]
[348901952,1736867448769,-500.0,9.969e-05,2]
[348901955,1736867448778,-501.74424371,9.969e-05,2]
[348901956,1736867448788,-500.0,9.969e-05,2]
[348901959,1736867448798,-504.51535545,9.97e-05,2]
[348901960,1736867448807,-406.12002518,9.974e-05,2]
[348901963,1736867448818,-406.12002518,9.993e-05,2]
[348901964,1736867448828,-406.12002518,9.995e-05,2]
[348901966,1736867448838,-406.12002518,9.997e-05,2]
[348901968,1736867448847,-3.29391812,9.997e-05,2]
[348901971,1736867448859,-402.82610706,9.997e-05,2]
[348901972,1736867448869,-797.17389294,9.998e-05,2]
[348901975,1736867448882,-6401.99999999,9.998e-05,2]
[348901979,1736867448911,-157.994781,9.739e-05,2]
[348901981,1736867448921,-24497.220569,9.998e-05,2]
[348901983,1736867448932,-5548.40988179,9.998e-05,2]
[348901985,1736867448943,-167796.71699687,9.998e-05,2]
[348901987,1736867448953,-296.42775344,9.998e-05,2]
[348901989,1736867448963,-500.0,9.998e-05,2]
[348901991,1736867448974,-1000.0,9.998e-05,2]
[348901993,1736867448984,-1274.4,9.998e-05,2]
[348901995,1736867448993,-500.0,9.998e-05,2]
[348901997,1736867449002,-3022.06,9.998e-05,2]
[348901999,1736867449011,-2861.8,9.998e-05,2]
[348902001,1736867449021,-46322.69139882,9.998e-05,2]
[348902003,1736867449033,-9642.64342945,9.998e-05,2]
[348902005,1736867449045,-393.494995,9.998e-05,2]
[348902008,1736867449057,-5132.2190332,9.998e-05,2]
[348902010,1736867449073,-2112.7,9.998e-05,2]
[348902012,1736867449085,-3680.946494,9.998e-05,2]
[348902015,1736867449096,-1648.3540861,9.998e-05,2]
[348902017,1736867449107,-1364.749998,9.998e-05,2]
[348902020,1736867449126,-4029.9675533,9.998e-05,2]
[348902022,1736867449138,-10045.4619323,9.998e-05,2]
[348902024,1736867449149,-1534.87489944,9.998e-05,2]
[348902026,1736867449159,-500.0,9.998e-05,2]
[348902028,1736867449168,-13986.4052636,9.998e-05,2]
[348902037,1736867449246,-1957.704,9.998e-05,2]
[348902042,1736867449279,-432.09496654,9.998e-05,2]
[348902138,1736867450220,-985.3431826,9.998e-05,2]
[348902140,1736867450229,-200.0,9.998e-05,2]
[348902142,1736867450239,-1978.41154196,9.998e-05,2]
[348902144,1736867450249,-629.59707149,9.998e-05,2]
[348902146,1736867450258,-200.0,9.999e-05,2]
[348902148,1736867450267,-84246.75062401,9.999e-05,2]
[348902150,1736867450277,-461.85201169,9.999e-05,2]
[348902152,1736867450287,-500.0,9.999e-05,2]
[348902154,1736867450296,-500.0,9.999e-05,2]
[348902157,1736867450306,-500.0,9.999e-05,2]
[348902158,1736867450316,-500.0,9.999e-05,2]
[348902160,1736867450326,-500.0,9.999e-05,2]
[348902162,1736867450335,-500.0,9.999e-05,2]
[348902165,1736867450344,-500.0,9.999e-05,2]
[348902166,1736867450354,-590.20920505,9.999e-05,2]
[348902168,1736867450363,-200.0,9.999e-05,2]
[348902170,1736867450373,-4722.621396,9.999e-05,2]
[348902172,1736867450382,-1813.665336,9.999e-05,2]
[348902174,1736867450392,-1978.41154196,0.0001,2]
[348902176,1736867450401,-296.42775344,0.0001,2]
[348902178,1736867450410,-627.27626994,0.0001,2]
[348902180,1736867450419,-51476.35862582,0.0001,2]
[348902183,1736867450431,-675.81884301,0.0001,2]
[348902185,1736867450441,-313.06330969,0.0001,2]
[348902209,1736867450665,-988.49,0.0001,2]
[348902211,1736867450677,-264.3754688,0.0001,2]
[348902295,1736867815876,1790.74,8.219e-05,2]
[348902298,1736868037804,250.0,0.00023,120]
[348902299,1736868079420,250.0,0.00023,120]
[348902302,1736868166824,151.0,9.87e-06,2]
[348902303,1736868177900,151.0,9.87e-06,2]
[348902304,1736868181688,203.108415,9.87e-06,2]
[348902317,1736868454626,118011.20577639,0.00019994,30]
[348902325,1736868568775,50000.0,0.0002,30]
[348902330,1736868597828,40021.0,0.0002,30]
[348902333,1736868605814,-483.12,8.893e-05,2]
[348902334,1736868605837,-250.0,8.926e-05,2]
[348902335,1736868605859,-1500.0,8.939e-05,2]
[348902336,1736868605880,-200.0,8.967e-05,2]
[348902337,1736868605902,-1609.03,8.98e-05,2]
[348902338,1736868611872,-373.28,8.98e-05,2]
[348902339,1736868611895,-1000.0,8.982e-05,2]
[348902340,1736868611917,-317.65,8.983e-05,2]
[348902341,1736868611939,-250.0,8.985e-05,2]
[348902342,1736868611961,-176.74,8.989e-05,2]
[348902343,1736868611983,-250.0,8.989e-05,2]
[348902344,1736868612004,-331.83,9.06e-05,2]
[348902345,1736868612027,-300.0,9.575e-05,2]
[348902346,1736868612047,-150.0,9.575e-05,2]
[348902347,1736868612068,-6850.5,9.576e-05,2]
[348902348,1736868616541,-10000.0,9.576e-05,2]
[348902349,1736868620569,-10000.0,9.576e-05,2]
[348902350,1736868624655,-10000.0,9.576e-05,2]
[348902351,1736868628586,-10000.0,9.576e-05,2]
[348902376,1736868631745,-905.59839347,9.576e-05,2]
[348902377,1736868631756,-1917.25166952,9.576e-05,2]
[348902378,1736868631768,-65965.64993701,9.576e-05,2]
[348902379,1736868631778,-504.47777772,9.69e-05,2]
[348902380,1736868631787,-1544.85304892,9.69e-05,2]
[348902381,1736868631796,-150.0,9.69e-05,2]
[348902382,1736868631805,-1527.17236079,9.71e-05,2]
[348902383,1736868631814,-178.024718,9.739e-05,2]
[348902384,1736868631823,-16753.7623,9.86e-05,2]
[348902385,1736868631833,-501.2806,9.86e-05,2]
[348902386,1736868631842,-201.0,9.866e-05,2]
[348902387,1736868631852,-5000.0,9.868e-05,2]
[348902388,1736868631862,-2031.44095808,9.95e-05,2]
[348902389,1736868631913,-488.4109207,9.95e-05,2]
[348902390,1736868631924,-1268.0,9.954e-05,2]
[348902391,1736868631933,-150.0,9.954e-05,2]
[348902392,1736868631943,-396.97590936,9.959e-05,2]
[348902393,1736868631953,-1495.71,9.959e-05,2]
[348902394,1736868631963,-500.0,9.959e-05,2]
[348902395,1736868631972,-2729.03,9.959e-05,2]
[348902396,1736868631982,-4123.17,9.959e-05,2]
[348902397,1736868631991,-1187.85,9.959e-05,2]
[348902398,1736868632002,-2251.43,9.959e-05,2]
[348902399,1736868632012,-500.0,9.959e-05,2]
[348902400,1736868632021,-1562.93,9.959e-05,2]
[348902401,1736868632031,-860.36,9.959e-05,2]
[348902402,1736868632040,-4089.08,9.959e-05,2]
[348902403,1736868632050,-500.0,9.959e-05,2]
[348902404,1736868632059,-1218.27,9.959e-05,2]
[348902405,1736868632068,-500.0,9.959e-05,2]
[348902406,1736868632078,-2177.29,9.959e-05,2]
[348902407,1736868632087,-500.0,9.959e-05,2]
[348902408,1736868632096,-858.1,9.959e-05,2]
[348902409,1736868632105,-505.55945692,9.959e-05,2]
[348902410,1736868632118,-500.0,9.959e-05,2]
[348902411,1736868632128,-500.0,9.959e-05,2]
[348902412,1736868632137,-500.0,9.959e-05,2]
[348902413,1736868632146,-170.1992938,9.959e-05,2]
[348902414,1736868632156,-100425.32869326,9.96e-05,2]
[348902415,1736868632247,-34400.0872106,9.96e-05,2]
[348902416,1736868632280,-430.68063875,9.96e-05,2]
[348902445,1736868632570,-500.0,9.959e-05,2]
[348902448,1736868632592,-500.0,9.959e-05,2]
[348902451,1736868632613,-2401.50215347,9.96e-05,2]
[348902454,1736868632636,-500.0,9.968e-05,2]
[348902457,1736868632658,-1346.16,9.968e-05,2]
[348902460,1736868632680,-296.84595655,9.968e-05,2]
[348902463,1736868632703,-996.63,9.968e-05,2]
[348902467,1736868632725,-1657.09,9.968e-05,2]
[348902470,1736868632747,-735.09,9.968e-05,2]
[348902473,1736868632769,-500.0,9.968e-05,2]
[348902476,1736868632791,-500.0,9.968e-05,2]
[348902480,1736868632814,-66.68188998,9.968e-05,2]
[348902817,1736868636466,-3897.0,9.954e-05,2]
[348902820,1736868636488,-500.0,9.959e-05,2]
[348902824,1736868636515,-520.70811002,9.968e-05,2]
[348902828,1736868636538,-500.0,9.968e-05,2]
[348902831,1736868636561,-500.0,9.968e-05,2]
[348902834,1736868636583,-500.0,9.968e-05,2]
[348902838,1736868636606,-1171.91,9.968e-05,2]
[348902841,1736868636628,-855.94,9.968e-05,2]
[348902844,1736868636651,-1554.44188998,9.968e-05,2]
[348902847,1736868637438,245420.00848686,0.0002,30]
[348902853,1736868637642,-500.0,9.959e-05,2]
[348902854,1736868637653,-1695.78811002,9.968e-05,2]
[348902855,1736868637663,-223.11936005,9.968e-05,2]
[348902856,1736868637676,-630.00063995,9.968e-05,2]
[348902857,1736868637686,-1140.76,9.968e-05,2]
[348902858,1736868637695,-500.0,9.968e-05,2]
[348902859,1736868637705,-500.0,9.968e-05,2]
[348902860,1736868637715,-500.0,9.968e-05,2]
[348902861,1736868637724,-1720.36991678,9.968e-05,2]
[348902862,1736868637736,-338.30008322,9.968e-05,2]
[348902863,1736868637751,-46.16991678,9.968e-05,2]
[348902864,1736868637764,-457.05032546,9.968e-05,2]
[348902865,1736868637775,-500.0,9.968e-05,2]
[348902866,1736868637784,-500.0,9.968e-05,2]
[348902867,1736868637794,-500.0,9.968e-05,2]
[348902868,1736868637806,-791.83,9.968e-05,2]
[348902869,1736868637816,-500.0,9.968e-05,2]
[348902870,1736868637826,-500.0,9.968e-05,2]
[348902871,1736868637836,-1688.38,9.968e-05,2]
[348902872,1736868637846,-500.0,9.968e-05,2]
[348902873,1736868637859,-1176.64,9.968e-05,2]
[348902874,1736868637869,-606.96506981,9.968e-05,2]
[348902875,1736868637879,-500.0,9.968e-05,2]
[348902876,1736868637889,-500.0,9.968e-05,2]
[348902877,1736868637899,-1261.368039,9.968e-05,2]
[348902878,1736868637909,-500.0,9.968e-05,2]
[348902879,1736868637918,-1121.13,9.968e-05,2]
[348902880,1736868637928,-500.0,9.968e-05,2]
[348902881,1736868637938,-500.0,9.968e-05,2]
[348902882,1736868637948,-500.0,9.968e-05,2]
[348902883,1736868637957,-1207.944053,9.968e-05,2]
[348902884,1736868637967,-500.0,9.968e-05,2]
[348902885,1736868637977,-500.0,9.968e-05,2]
[348902886,1736868637987,-168.085348,9.968e-05,2]
[348902887,1736868637996,-500.0,9.968e-05,2]
[348902888,1736868638006,-500.0,9.968e-05,2]
[348902889,1736868638017,-156.791047,9.968e-05,2]
[348902890,1736868638026,-4911.66,9.968e-05,2]
[348902891,1736868638036,-500.0,9.968e-05,2]
[348902892,1736868638046,-501.61419468,9.968e-05,2]
[348902893,1736868638055,-500.0,9.968e-05,2]
[348902894,1736868638066,-500.0,9.968e-05,2]
[348902895,1736868638077,-500.0,9.968e-05,2]
[348902897,1736868638088,-500.0,9.968e-05,2]
[348902899,1736868638097,-500.0,9.968e-05,2]
[348902901,1736868638109,-504.40800661,9.968e-05,2]
[348902903,1736868638123,-1302.26,9.968e-05,2]
[348902905,1736868638133,-500.0,9.968e-05,2]
[348902907,1736868638143,-500.0,9.968e-05,2]
[348902909,1736868638153,-496.33026005,9.968e-05,2]
[348902911,1736868638164,-500.0,9.968e-05,2]
[348902913,1736868638174,-500.0,9.968e-05,2]
[348902916,1736868638184,-1381.22,9.968e-05,2]
[348902918,1736868638194,-500.0,9.968e-05,2]
[348902920,1736868638203,-1234.84,9.968e-05,2]
[348902922,1736868638213,-580.98,9.968e-05,2]
[348902924,1736868638222,-506.32112747,9.968e-05,2]
[348902926,1736868638231,-500.0,9.968e-05,2]
[348902929,1736868638241,-501.5399418,9.968e-05,2]
[348902932,1736868638250,-1232.15,9.968e-05,2]
[348902935,1736868638259,-505.81517524,9.968e-05,2]
[348902939,1736868638273,-500.0,9.968e-05,2]
[348902942,1736868638282,-500.0,9.968e-05,2]
[348902944,1736868638292,-755.03,9.968e-05,2]
[348902945,1736868638301,-1414.06,9.968e-05,2]
[348902947,1736868638311,-500.0,9.968e-05,2]
[348902949,1736868638321,-500.0,9.968e-05,2]
[348902951,1736868638330,-500.0,9.968e-05,2]
[348902953,1736868638340,-907.24,9.968e-05,2]
[348902955,1736868638352,-500.0,9.968e-05,2]
[348902957,1736868638363,-500.0,9.968e-05,2]
[348902959,1736868638372,-572.02788219,9.968e-05,2]
[348902961,1736868638384,-500.0,9.968e-05,2]
[348902963,1736868638394,-500.0,9.968e-05,2]
[348902965,1736868638404,-500.0,9.968e-05,2]
[348902967,1736868638413,-500.0,9.968e-05,2]
[348902969,1736868638423,-500.0,9.968e-05,2]
[348902971,1736868638432,-500.0,9.968e-05,2]
[348902974,1736868638442,-505.72431965,9.968e-05,2]
[348902976,1736868638452,-19.90313619,9.968e-05,2]
[348902978,1736868638465,-1387.07686381,9.968e-05,2]
[348902980,1736868638475,-109.90989665,9.968e-05,2]
[348902984,1736868638504,-390.09010335,9.968e-05,2]
[348902986,1736868638515,-252.32216665,9.968e-05,2]
[348902988,1736868638527,-247.67783335,9.968e-05,2]
[348902990,1736868638537,-500.0,9.968e-05,2]
[348902992,1736868638547,-630.28,9.968e-05,2]
[348902994,1736868638557,-500.0,9.968e-05,2]
[348902996,1736868638567,-500.0,9.968e-05,2]
[348902998,1736868638577,-500.0,9.968e-05,2]
[348903000,1736868638586,-5160.15,9.968e-05,2]
[348903002,1736868638596,-500.0,9.968e-05,2]
[348903005,1736868638608,-500.0,9.968e-05,2]
[348903007,1736868638618,-1158.28,9.968e-05,2]
[348903009,1736868638627,-1093.38,9.968e-05,2]
[348903010,1736868638637,-500.0,9.968e-05,2]
[348903013,1736868638647,-866.05,9.968e-05,2]
[348903015,1736868638656,-500.0,9.968e-05,2]
[348903017,1736868638666,-500.0,9.968e-05,2]
[348903019,1736868638675,-500.0,9.968e-05,2]
[348903021,1736868638685,-500.0,9.968e-05,2]
[348903023,1736868638695,-500.0,9.968e-05,2]
[348903025,1736868638704,-2451.15,9.968e-05,2]
[348903027,1736868638714,-1099.24,9.968e-05,2]
[348903029,1736868638723,-163.79216667,9.968e-05,2]
[348903031,1736868639636,-637.0,9.954e-05,2]
[348903032,1736868639646,-207.08011937,9.959e-05,2]
[348903033,1736868639658,-306.95988063,9.959e-05,2]
[348903034,1736868639668,-34.34583952,9.959e-05,2]
[348903035,1736868639679,-345.10999,9.959e-05,2]
[348903036,1736868639698,-120.54417048,9.959e-05,2]
[348903037,1736868639708,-264.40579656,9.968e-05,2]
[348903038,1736868639762,-71.80203677,9.968e-05,2]
[348903039,1736868639772,-500.0,9.968e-05,2]
[348903040,1736868639782,-1107.49,9.968e-05,2]
[348903041,1736868639791,-929.85,9.968e-05,2]
[348903042,1736868639801,-766.02,9.968e-05,2]
[348903043,1736868639811,-869.56,9.968e-05,2]
[348903044,1736868639820,-1097.17,9.968e-05,2]
[348903045,1736868639830,-505.90778457,9.968e-05,2]
[348903046,1736868639839,-500.0,9.968e-05,2]
[348903047,1736868639849,-1541.12,9.968e-05,2]
[348903048,1736868639862,-1179.28114109,9.968e-05,2]
[348903049,1736868639874,-2572.02885891,9.968e-05,2]
[348903050,1736868639883,-247.91492437,9.968e-05,2]
[348903051,1736868639893,-1657.01,9.968e-05,2]
[348903052,1736868639902,-500.0,9.968e-05,2]
[348903053,1736868639912,-500.0,9.968e-05,2]
[348903054,1736868639921,-2558.11,9.968e-05,2]
[348903055,1736868639932,-2032.81557495,9.968e-05,2]
[348903056,1736868639944,-1383.23442505,9.968e-05,2]
[348903057,1736868639954,-500.0,9.968e-05,2]
[348903058,1736868639963,-500.0,9.968e-05,2]
[348903059,1736868639973,-9883.28,9.968e-05,2]
[348903060,1736868639983,-968.29,9.968e-05,2]
[348903061,1736868639994,-500.0,9.968e-05,2]
[348903062,1736868640004,-500.0,9.968e-05,2]
[348903063,1736868640013,-500.0,9.968e-05,2]
[348903064,1736868640023,-651.09,9.968e-05,2]
[348903065,1736868640032,-381.02098245,9.968e-05,2]
[348903066,1736868640042,-508.98469171,9.968e-05,2]
[348903067,1736868640052,-1578.62,9.968e-05,2]
[348903068,1736868640062,-1022.12,9.968e-05,2]
[348903069,1736868640073,-500.0,9.968e-05,2]
[348903070,1736868640082,-500.0,9.968e-05,2]
[348903071,1736868640093,-500.0,9.968e-05,2]
[348903072,1736868640104,-4361.78,9.968e-05,2]
[348903073,1736868640114,-2955.89,9.968e-05,2]
[348903074,1736868640127,-3245.49,9.968e-05,2]
[348903075,1736868640137,-500.0,9.968e-05,2]
[348903076,1736868640147,-2090.28,9.968e-05,2]
[348903077,1736868640157,-1077.46,9.968e-05,2]
[348903078,1736868640166,-4111.48,9.968e-05,2]
[348903079,1736868640176,-627.15,9.968e-05,2]
[348903080,1736868640186,-1723.24,9.968e-05,2]
[348903081,1736868640196,-500.0,9.968e-05,2]
[348903082,1736868640206,-500.0,9.968e-05,2]
[348903083,1736868640216,-914.67,9.968e-05,2]
[348903084,1736868640226,-500.0,9.968e-05,2]
[348903085,1736868640236,-500.0,9.968e-05,2]
[348903086,1736868640245,-1511.08,9.968e-05,2]
[348903087,1736868640255,-5551.72,9.968e-05,2]
[348903088,1736868640265,-500.0,9.968e-05,2]
[348903089,1736868640274,-2378.59,9.968e-05,2]
[348903090,1736868640284,-500.0,9.969e-05,2]
[348903091,1736868640293,-500.0,9.969e-05,2]
[348903092,1736868640303,-500.0,9.969e-05,2]
[348903093,1736868640312,-500.0,9.969e-05,2]
[348903094,1736868640322,-500.0,9.969e-05,2]
[348903095,1736868640331,-500.0,9.969e-05,2]
[348903096,1736868640341,-502.78554275,9.969e-05,2]
[348903097,1736868640351,-500.0,9.969e-05,2]
[348903098,1736868640360,-500.0,9.969e-05,2]
[348903099,1736868640370,-500.0,9.969e-05,2]
[348903100,1736868640379,-500.0,9.969e-05,2]
[348903101,1736868640389,-500.0,9.969e-05,2]
[348903102,1736868640399,-500.0,9.969e-05,2]
[348903103,1736868640409,-500.0,9.969e-05,2]
[348903104,1736868640418,-500.0,9.969e-05,2]
[348903105,1736868640652,-500.0,9.969e-05,2]
[348903106,1736868640662,-500.0,9.969e-05,2]
[348903107,1736868640672,-500.0,9.969e-05,2]
[348903108,1736868640682,-500.0,9.969e-05,2]
[348903109,1736868640692,-500.0,9.969e-05,2]
[348903110,1736868640702,-500.0,9.969e-05,2]
[348903111,1736868640712,-500.77558763,9.969e-05,2]
[348903112,1736868640722,-500.0,9.969e-05,2]
[348903113,1736868640731,-500.0,9.969e-05,2]
[348903114,1736868640740,-500.0,9.969e-05,2]
[348903115,1736868640749,-500.0,9.969e-05,2]
[348903116,1736868640759,-500.0,9.969e-05,2]
[348903117,1736868640768,-504.78966338,9.969e-05,2]
[348903118,1736868640778,-500.0,9.969e-05,2]
[348903119,1736868640788,-500.0,9.969e-05,2]
[348903120,1736868640798,-500.0,9.969e-05,2]
[348903121,1736868640808,-500.0,9.969e-05,2]
[348903122,1736868640817,-500.0,9.969e-05,2]
[348903123,1736868640826,-500.0,9.969e-05,2]
[348903124,1736868640837,-500.0,9.969e-05,2]
[348903125,1736868640846,-500.0,9.969e-05,2]
[348903126,1736868640856,-500.0,9.969e-05,2]
[348903127,1736868640865,-502.19219473,9.969e-05,2]
[348903128,1736868640874,-504.32868547,9.969e-05,2]
[348903129,1736868640884,-500.0,9.969e-05,2]
[348903130,1736868640893,-500.0,9.969e-05,2]
[348903131,1736868640903,-500.0,9.969e-05,2]
[348903132,1736868640912,-500.0,9.969e-05,2]
[348903133,1736868640921,-510.10258015,9.969e-05,2]
[348903134,1736868640930,-500.0,9.969e-05,2]
[348903135,1736868640940,-527.83,9.969e-05,2]
[348903136,1736868640949,-500.0,9.969e-05,2]
[348903137,1736868640958,-266.96514489,9.969e-05,2]
[348903138,1736868640967,-500.0,9.969e-05,2]
[348903139,1736868640976,-500.0,9.969e-05,2]
[348903140,1736868640986,-500.0,9.969e-05,2]
[348903141,1736868640995,-355.97426804,9.969e-05,2]
[348903142,1736868641004,-500.0,9.969e-05,2]
[348903143,1736868641014,-500.0,9.969e-05,2]
[348903144,1736868641023,-500.0,9.969e-05,2]
[348903145,1736868641032,-500.0,9.969e-05,2]
[348903146,1736868641042,-500.0,9.969e-05,2]
[348903147,1736868641051,-502.4297246,9.969e-05,2]
[348903148,1736868641060,-500.0,9.969e-05,2]
[348903149,1736868641070,-501.465658,9.969e-05,2]
[348903150,1736868641079,-620.0421308,9.969e-05,2]
[348903151,1736868641089,-502.96350983,9.969e-05,2]
[348903152,1736868641098,-73.36496041,9.969e-05,2]
[348903153,1736868641117,-428.92673284,9.969e-05,2]
[348903154,1736868641127,-500.0,9.969e-05,2]
[348903155,1736868641136,-510.34220156,9.969e-05,2]
[348903156,1736868641145,-500.0,9.969e-05,2]
[348903157,1736868641154,-500.0,9.969e-05,2]
[348903158,1736868641164,-500.0,9.969e-05,2]
[348903159,1736868641172,-500.0,9.969e-05,2]
[348903160,1736868641182,-500.0,9.969e-05,2]
[348903161,1736868641192,-204.32532721,9.969e-05,2]
[348903162,1736868641203,-507.88077786,9.969e-05,2]
[348903163,1736868641213,-500.0,9.969e-05,2]
[348903164,1736868641225,-500.0,9.969e-05,2]
[348903165,1736868641235,-500.0,9.969e-05,2]
[348903166,1736868641246,-500.0,9.969e-05,2]
[348903167,1736868641257,-500.0,9.969e-05,2]
[348903168,1736868641266,-500.0,9.969e-05,2]
[348903169,1736868641275,-502.66734371,9.969e-05,2]
[348903170,1736868641286,-500.0,9.969e-05,2]
[348903171,1736868641296,-500.0,9.969e-05,2]
[348903172,1736868641306,-500.0,9.969e-05,2]
[348903173,1736868641318,-500.0,9.969e-05,2]
[348903174,1736868641328,-500.0,9.969e-05,2]
[348903175,1736868641337,-500.0,9.969e-05,2]
[348903176,1736868641346,-500.0,9.969e-05,2]
[348903177,1736868641357,-500.0,9.969e-05,2]
[348903178,1736868641366,-500.0,9.969e-05,2]
[348903179,1736868641378,-500.0,9.969e-05,2]
[348903180,1736868641388,-500.0,9.969e-05,2]
[348903181,1736868641397,-500.0,9.969e-05,2]
[348903182,1736868641407,-500.0,9.969e-05,2]
[348903183,1736868641416,-500.0,9.969e-05,2]
[348903184,1736868641425,-500.0,9.969e-05,2]
[348903185,1736868641435,-214.35745467,9.969e-05,2]
[348903186,1736868641448,-285.64254533,9.969e-05,2]
[348903187,1736868641458,-500.0,9.969e-05,2]
[348903188,1736868641469,-500.0,9.969e-05,2]
[348903189,1736868641480,-500.0,9.969e-05,2]
[348903190,1736868641493,-500.0,9.969e-05,2]
[348903191,1736868641503,-500.0,9.969e-05,2]
[348903192,1736868641514,-500.0,9.969e-05,2]
[348903193,1736868641525,-141.85745467,9.969e-05,2]
[348903194,1736868641558,-358.14254533,9.969e-05,2]
[348903195,1736868641568,-500.0,9.969e-05,2]
[348903196,1736868641579,-500.0,9.969e-05,2]
[348903197,1736868641588,-500.0,9.969e-05,2]
[348903198,1736868641598,-210.49184071,9.969e-05,2]
[348903199,1736868641610,-289.50815929,9.969e-05,2]
[348903200,1736868641620,-500.0,9.969e-05,2]
[348903201,1736868641631,-500.66384785,9.969e-05,2]
[348903202,1736868641640,-543.86978298,9.969e-05,2]
[348903203,1736868641651,-500.0,9.969e-05,2]
[348903204,1736868641660,-61.93820988,9.969e-05,2]
[348903205,1736868641687,-441.12803844,9.969e-05,2]
[348903206,1736868641697,-351.70379028,9.969e-05,2]
[348903207,1736868641708,-148.29620972,9.969e-05,2]
[348903208,1736868641717,-363.98181869,9.969e-05,2]
[348903209,1736868642082,-136.01818131,9.969e-05,2]
[348903210,1736868642092,-502.68395473,9.969e-05,2]
[348903211,1736868642104,-630.46777791,9.969e-05,2]
[348903212,1736868642113,-502.01372735,9.969e-05,2]
[348903213,1736868642125,-500.0,9.969e-05,2]
[348903214,1736868642134,-572.42031,9.969e-05,2]
[348903215,1736868642145,-500.0,9.969e-05,2]
[348903216,1736868642155,-500.0,9.969e-05,2]
[348903217,1736868642164,-500.0,9.969e-05,2]
[348903218,1736868642173,-500.0,9.969e-05,2]
[348903219,1736868642182,-500.0,9.969e-05,2]
[348903220,1736868642192,-500.0,9.969e-05,2]
[348903221,1736868642202,-500.0,9.969e-05,2]
[348903222,1736868642212,-500.0,9.969e-05,2]
[348903223,1736868642221,-500.0,9.969e-05,2]
[348903224,1736868642231,-500.0,9.969e-05,2]
[348903225,1736868642240,-500.0,9.969e-05,2]
[348903226,1736868642249,-326.47229872,9.969e-05,2]
[348903227,1736868642258,-504.02020791,9.969e-05,2]
[348903228,1736868642268,-500.0,9.969e-05,2]
[348903229,1736868642278,-505.46126816,9.969e-05,2]
[348903230,1736868642291,-500.0,9.969e-05,2]
[348903231,1736868642307,-500.0,9.969e-05,2]
[348903232,1736868642321,-504.18197524,9.969e-05,2]
[348903233,1736868642332,-502.12302909,9.969e-05,2]
[348903234,1736868642344,-500.0,9.969e-05,2]
[348903235,1736868642360,-500.0,9.969e-05,2]
[348903236,1736868642372,-500.0,9.969e-05,2]
[348903237,1736868642386,-500.0,9.969e-05,2]
[348903238,1736868642400,-500.30202199,9.969e-05,2]
[348903239,1736868642413,-500.0,9.969e-05,2]
[348903240,1736868642424,-500.0,9.969e-05,2]
[348903241,1736868642435,-503.31844944,9.969e-05,2]
[348903242,1736868642449,-506.85558834,9.969e-05,2]
[348903243,1736868642462,-500.17692591,9.969e-05,2]
[348903244,1736868642476,-500.0,9.969e-05,2]
[348903245,1736868642489,-500.0,9.969e-05,2]
[348903246,1736868642503,-500.0,9.969e-05,2]
[348903247,1736868642516,-500.0,9.969e-05,2]
[348903249,1736868642529,-500.0,9.969e-05,2]
[348903250,1736868642543,-503.94330046,9.969e-05,2]
[348903251,1736868642557,-500.0,9.969e-05,2]
[348903252,1736868642569,-500.0,9.969e-05,2]
[348903253,1736868642582,-500.0,9.969e-05,2]
[348903254,1736868642595,-502.29875905,9.969e-05,2]
[348903255,1736868642608,-157.118634,9.969e-05,2]
[348903256,1736868642622,-500.0,9.969e-05,2]
[348903257,1736868642635,-500.0,9.969e-05,2]
[348903258,1736868642648,-500.0,9.969e-05,2]
[348903259,1736868642658,-501.8963713,9.969e-05,2]
[348903260,1736868642670,-500.0,9.969e-05,2]
[348903262,1736868642683,-987.58,9.969e-05,2]
[348903263,1736868642698,-500.0,9.969e-05,2]
[348903264,1736868642709,-500.0,9.969e-05,2]
[348903265,1736868642719,-159.43487413,9.969e-05,2]
[348903266,1736868642731,-500.0,9.969e-05,2]
[348903267,1736868642744,-503.37706134,9.969e-05,2]
[348903268,1736868642757,-500.0,9.969e-05,2]